bitfinex-derivatives/quotes_BTCF0:USTF0_20250119
["timestamp","ask_amount","ask_price","bid_price","bid_amount"]
[1737258963451,0.23035137,105140.0,105130.0,1.29717628]
[1737258965250,0.408397,105170.0,105130.0,1.33710722]
[1737258965452,0.13303394,105160.0,105150.0,0.3608]
[1737258965651,0.13222794,105170.0,105150.0,0.49593694]
[1737258965854,0.13222794,105170.0,105160.0,0.0482]
[1737258966251,0.13222794,105170.0,105160.0,0.0958]
[1737258966454,0.13222794,105170.0,105160.0,0.4566]
[1737258966948,0.08752794,105170.0,105160.0,0.4566]
[1737258967144,0.453892,105180.0,105160.0,0.4566]
[1737258967348,0.13302294,105180.0,105170.0,0.3608]
[1737258967751,0.093092,105180.0,105170.0,0.3608]
[1737258968349,0.17295388,105180.0,105170.0,0.3608]
[1737258968752,0.18098229,105180.0,105170.0,0.3608]
[1737258973955,0.49419029,105180.0,105160.0,0.409]
[1737258974159,0.08752694,105170.0,105160.0,0.409]
[1737258983561,0.08752694,105170.0,105160.0,0.4566]
[1737258993868,0.08752694,105170.0,105160.0,0.6264333]
[1737258994363,0.047596,105170.0,105160.0,0.66636424]
[1737258994870,0.08752694,105170.0,105160.0,0.6264333]
[1737258995865,0.08752694,105170.0,105160.0,0.68292396]
[1737258996564,0.067587,105190.0,105180.0,0.047591]
[1737258996870,0.10751794,105190.0,105180.0,0.408391]
[1737258997261,0.10751794,105190.0,105180.0,0.453191]
[1737258997663,0.047591,105180.0,105170.0,0.408395]
[1737258997867,0.13172194,105180.0,105170.0,0.69269361]
[1737258998163,0.17165288,105180.0,105170.0,0.69269361]
[1737258998563,0.13172194,105180.0,105170.0,0.69269361]
[1737258999070,0.13172194,105180.0,105170.0,0.64509861]
[1737258999271,0.13172194,105180.0,105170.0,0.3608]
[1737259000165,0.047596,105170.0,105160.0,0.88892555]
[1737259001771,0.08752694,105170.0,105160.0,0.84899461]
[1737259002373,0.047596,105170.0,105160.0,0.88892555]
[1737259002571,0.047596,105170.0,105160.0,0.66275606]
[1737259005668,0.08752694,105170.0,105160.0,0.62282512]
[1737259005863,0.08752694,105170.0,105160.0,0.66275606]
[1737259006070,0.08752694,105170.0,105160.0,0.71929843]
[1737259006276,0.047596,105170.0,105160.0,0.71929843]
[1737259008675,0.05608004,105170.0,105160.0,0.71929843]
[1737259014596,0.09601098,105170.0,105160.0,0.71929843]
[1737259016694,0.05608004,105170.0,105160.0,0.71929843]
[1737259017094,0.09601098,105170.0,105160.0,0.63176949]
[1737259017294,0.14271098,105170.0,105160.0,0.58696949]
[1737259017489,0.18611098,105170.0,105160.0,0.58696949]
[1737259017884,0.18611098,105170.0,105160.0,0.39575986]
[1737259018692,0.18611098,105170.0,105160.0,0.75655986]
[1737259018897,0.18611098,105170.0,105160.0,0.39575986]
[1737259019700,0.18611098,105170.0,105160.0,0.16959037]
[1737259021899,0.047601,105160.0,105150.0,0.72358105]
[1737259022699,0.047601,105160.0,105150.0,0.67597705]
[1737259022899,0.08753194,105160.0,105150.0,0.59004611]
[1737259023093,0.08753194,105160.0,105150.0,0.81194654]
[1737259023404,0.13383194,105160.0,105150.0,0.81194654]
[1737259024101,0.093901,105160.0,105150.0,0.81194654]
[1737259024305,0.093901,105160.0,105150.0,0.58577705]
[1737259026096,0.093901,105160.0,105150.0,0.41618668]
[1737259028403,0.047601,105160.0,105150.0,0.46379168]
[1737259028604,0.047601,105160.0,105150.0,0.55579168]
[1737259029803,0.047601,105160.0,105150.0,0.50899168]
[1737259030005,0.047601,105160.0,105150.0,0.90475154]
[1737259030805,0.047601,105160.0,105150.0,1.01945978]
[1737259031599,0.047601,105160.0,105150.0,0.73516117]
[1737259032502,0.047601,105160.0,105150.0,1.43966142]
[1737259032708,0.08753194,105160.0,105150.0,1.30692548]
[1737259032905,0.13313194,105160.0,105150.0,1.30692548]
[1737259033098,0.17653194,105160.0,105150.0,1.30692548]
[1737259033503,0.136601,105160.0,105150.0,1.34685642]
[1737259033706,0.136601,105160.0,105150.0,0.64235617]
[1737259037013,0.136601,105160.0,105150.0,0.58582293]
[1737259038605,0.136601,105160.0,105150.0,0.54589199]
[1737259039106,0.17653194,105160.0,105150.0,0.54589199]
[1737259039810,0.136601,105160.0,105150.0,0.54589199]
[1737259040509,0.17653194,105160.0,105150.0,0.54589199]
[1737259040708,0.22123194,105160.0,105150.0,0.54589199]
[1737259041304,0.22123194,105160.0,105150.0,0.37625574]
[1737259041713,0.22123194,105160.0,105150.0,0.01545574]
[1737259042013,0.26116288,105160.0,105150.0,0.01545574]
[1737259042205,0.22123194,105160.0,105150.0,0.01545574]
[1737259042606,0.26116288,105160.0,105150.0,0.01545574]
[1737259042808,0.26116288,105160.0,105150.0,0.37625574]
[1737259044410,0.26116288,105160.0,105150.0,0.01545574]
[1737259044608,0.047605,105150.0,105140.0,0.53186277]
[1737259044809,0.08753594,105150.0,105140.0,0.87269462]
[1737259045810,0.08753594,105150.0,105140.0,0.75802537]
[1737259049122,0.047605,105150.0,105140.0,0.79795631]
[1737259049320,0.047605,105150.0,105140.0,0.84195631]
[1737259050313,0.047605,105150.0,105140.0,1.37754926]
[1737259050514,0.08753594,105150.0,105140.0,1.33761832]
[1737259050913,0.08753594,105150.0,105140.0,1.29361832]
[1737259051111,0.09624731,105150.0,105140.0,0.87269462]
[1737259052319,0.05631637,105150.0,105140.0,0.87269462]
[1737259052519,0.09624731,105150.0,105140.0,0.87269462]
[1737259052720,0.05631637,105150.0,105140.0,0.87269462]
[1737259053021,0.23893361,105150.0,105140.0,0.53175248]
[1737259053823,0.59973361,105150.0,105140.0,0.17095248]
[1737259054320,0.77095717,105150.0,105140.0,0.00142652]
[1737259055521,0.62827087,105150.0,105140.0,0.00142652]
[1737259055717,0.26747087,105150.0,105140.0,0.00142652]
[1737259055922,0.26747087,105150.0,105140.0,0.36222652]
[1737259056123,0.22753993,105150.0,105140.0,0.40215746]
[1737259056313,0.26747087,105150.0,105140.0,0.40215746]
[1737259056725,0.26747087,105150.0,105140.0,0.36222652]
[1737259056920,0.09624731,105150.0,105140.0,0.36222652]
[1737259057121,0.09624731,105150.0,105140.0,0.00142652]
[1737259058118,0.41005629,105150.0,105140.0,0.00142652]
[1737259058714,0.41005629,105150.0,105130.0,0.53032596]
[1737259058916,0.13034094,105140.0,105130.0,0.53032596]
[1737259059119,0.17027188,105140.0,105130.0,0.16952596]
[1737259059314,0.62217188,105140.0,105130.0,0.16952596]
[1737259059620,0.047614,105130.0,105110.0,0.80080627]
[1737259059827,0.08754994,105120.0,105110.0,0.84073721]
[1737259061330,0.401345,105120.0,105110.0,0.44513094]
[1737259061621,0.401345,105120.0,105110.0,0.3608]
[1737259062014,0.44127594,105120.0,105110.0,0.3608]
[1737259062326,0.047623,105110.0,105100.0,0.1453]
[1737259062514,0.08755394,105110.0,105100.0,0.1453]
[1737259062915,0.08755394,105110.0,105100.0,0.5061]
[1737259063124,0.08755394,105110.0,105100.0,0.1453]
[1737259063328,0.08755394,105110.0,105100.0,0.5061]
[1737259063517,0.401349,105110.0,105100.0,0.5061]
[1737259064518,0.401349,105110.0,105100.0,0.54603094]
[1737259064713,0.1901945,105110.0,105100.0,0.58596188]
[1737259065218,0.1901945,105110.0,105100.0,0.54603094]
[1737259065722,0.1901945,105110.0,105100.0,0.58596188]
[1737259066324,0.047623,105110.0,105100.0,0.58596188]
[1737259067232,0.36141406,105120.0,105100.0,0.63358688]
[1737259067528,0.36141406,105120.0,105110.0,0.53675394]
[1737259067716,0.36141006,105130.0,105110.0,0.57668488]
[1737259067914,0.36141006,105130.0,105120.0,0.44313094]
[1737259068120,0.36141006,105130.0,105120.0,0.48306188]
[1737259068321,0.36141006,105130.0,105120.0,0.44313094]
[1737259068926,0.047615,105130.0,105120.0,0.44313094]
[1737259069328,0.047615,105130.0,105120.0,0.4641104]
[1737259070913,0.047615,105130.0,105120.0,0.5117294]
[1737259074626,0.047615,105130.0,105120.0,0.4032]
[1737259074831,0.1085254,105130.0,105120.0,0.4032]
[1737259075630,0.1085254,105130.0,105110.0,0.5577324]
[1737259075631,0.047619,105120.0,105110.0,0.4492]
[1737259075934,0.047619,105120.0,105110.0,0.404]
[1737259077123,0.047619,105120.0,105110.0,0.3608]
[1737259078330,0.1901905,105120.0,105110.0,0.3608]
[1737259079824,0.2336905,105120.0,105110.0,0.3608]
[1737259080536,0.2777905,105120.0,105110.0,0.3608]
[1737259081336,0.3387009,105120.0,105110.0,0.3608]
[1737259081536,0.047623,105110.0,105100.0,0.6570374]
[1737259082231,0.047623,105110.0,105100.0,0.5658104]
[1737259082442,0.090623,105110.0,105100.0,0.5049]
[1737259082629,0.090623,105110.0,105100.0,0.5658104]
[1737259083730,0.090623,105110.0,105100.0,0.4608]
[1737259083930,0.1515334,105110.0,105100.0,0.4608]
[1737259084428,0.090623,105110.0,105100.0,0.1]
[1737259084731,0.090623,105110.0,105100.0,0.4608]
[1737259088239,0.090623,105110.0,105100.0,0.1]
[1737259088833,0.2331945,105110.0,105100.0,0.1]
[1737259090539,0.40441806,105110.0,105100.0,0.4608]
[1737259090736,0.40441806,105110.0,105100.0,0.1]
[1737259091243,0.40441806,105110.0,105100.0,0.4608]
[1737259092738,0.2331945,105110.0,105100.0,0.4608]
[1737259093246,0.2331945,105110.0,105100.0,0.1]
[1737259093541,0.2331945,105110.0,105100.0,0.4608]
[1737259095142,0.2331945,105110.0,105100.0,0.5217104]
[1737259095443,0.2331945,105110.0,105100.0,0.5649104]
[1737259095644,0.2331945,105110.0,105100.0,0.504]
[1737259096340,0.2331945,105110.0,105100.0,0.4608]
[1737259097435,0.090623,105110.0,105100.0,0.4608]
[1737259101435,0.090623,105110.0,105100.0,0.50079114]
[1737259102653,0.2331945,105110.0,105100.0,0.50079114]
[1737259111464,0.40441806,105110.0,105100.0,0.50079114]
[1737259112565,0.4444092,105110.0,105100.0,0.50079114]
[1737259112766,0.13061414,105110.0,105100.0,0.50079114]
[1737259114469,0.13061414,105110.0,105100.0,0.13999114]
[1737259114669,0.047623,105110.0,105100.0,0.50079114]
[1737259114964,0.22829809,105130.0,105120.0,0.047618]
[1737259115162,0.22829809,105130.0,105120.0,0.84920028]
[1737259115360,0.22829809,105130.0,105120.0,0.83011532]
[1737259115561,0.22829809,105130.0,105120.0,0.87151532]
[1737259116477,0.21757188,105130.0,105120.0,0.87151532]
[1737259116973,0.26518588,105130.0,105120.0,0.87151532]
[1737259117365,0.26518588,105130.0,105120.0,0.810618]
[1737259117675,0.26518588,105130.0,105120.0,0.3608]
[1737259117973,0.1902544,105130.0,105120.0,0.3608]
[1737259119176,0.047614,105130.0,105120.0,0.3608]
[1737259121674,0.088814,105130.0,105120.0,0.3608]
[1737259122274,0.088814,105130.0,105120.0,0.42169732]
[1737259122473,0.088814,105130.0,105120.0,0.3608]
[1737259126375,0.19161132,105130.0,105120.0,0.3608]
[1737259127478,0.36287351,105130.0,105120.0,0.3608]
[1737259128773,0.36287351,105130.0,105110.0,0.3608]
[1737259128974,0.090218,105120.0,105110.0,0.3608]
[1737259129172,0.15111532,105120.0,105110.0,0.3608]
[1737259130173,0.29358649,105120.0,105110.0,0.3608]
[1737259131178,0.23268917,105120.0,105110.0,0.3608]
[1737259131573,0.23268917,105120.0,105110.0,0.42169732]
[1737259131872,0.26148019,105120.0,105110.0,0.42169732]
[1737259133279,0.30779658,105120.0,105110.0,0.42169732]
[1737259133477,0.30779658,105120.0,105110.0,0.3608]
[1737259134181,0.31703149,105120.0,105110.0,0.3608]
[1737259134682,0.24195952,105120.0,105110.0,0.3608]
[1737259137186,0.24195952,105120.0,105100.0,0.25092432]
[1737259137378,0.047623,105110.0,105100.0,0.5908116]
[1737259137578,0.047623,105110.0,105100.0,0.9516116]
[1737259142787,0.19012961,105110.0,105100.0,0.9516116]
[1737259143788,0.23282961,105110.0,105100.0,0.9516116]
[1737259144291,0.23282961,105110.0,105100.0,0.9039846]
[1737259147093,0.27281421,105110.0,105100.0,0.8216]
[1737259147396,0.31521421,105110.0,105100.0,0.8216]
[1737259147587,0.34396979,105110.0,105100.0,0.8216]
[1737259149386,0.1727076,105110.0,105100.0,0.8216]
[1737259150291,0.31536476,105110.0,105100.0,0.8216]
[1737259155598,0.047627,105100.0,105090.0,0.11923358]
[1737259155789,0.047632,105090.0,105080.0,0.28429861]
[1737259155989,0.5756012,105090.0,105080.0,0.28429861]
[1737259156892,0.047636,105080.0,105050.0,0.39849124]
[1737259157087,0.047636,105080.0,105020.0,1.19149365]
[1737259157088,0.047655,105040.0,105020.0,1.19149365]
[1737259157292,0.769259,105030.0,105020.0,1.07516905]
[1737259157495,0.06107455,105030.0,105020.0,1.43472905]
[1737259157691,0.047659,105030.0,105020.0,0.3968541]
[1737259157895,0.10873055,105040.0,105020.0,0.7982541]
[1737259158101,0.3608,105050.0,105030.0,0.3608]
[1737259158293,0.37019668,105050.0,105030.0,0.42187455]
[1737259158698,0.43127123,105050.0,105030.0,0.3608]
[1737259159296,0.47892123,105050.0,105030.0,0.3608]
[1737259159494,0.06107455,105040.0,105030.0,0.3608]
[1737259160502,0.06107455,105040.0,105020.0,0.28859418]
[1737259160503,0.10872955,105040.0,105020.0,0.28859418]
[1737259160701,0.3608,105040.0,105030.0,0.047659]
[1737259161399,0.17031294,105040.0,105030.0,0.047659]
[1737259161597,0.17031294,105040.0,105030.0,0.32648503]
[1737259161795,0.17031294,105040.0,105030.0,0.42187455]
[1737259162398,0.24078417,105050.0,105040.0,0.047655]
[1737259162705,0.17031294,105050.0,105040.0,0.51362955]
[1737259162896,0.3608,105070.0,105040.0,0.51362955]
[1737259163101,0.3608,105070.0,105050.0,0.42187455]
[1737259163300,0.3608,105070.0,105050.0,0.10872355]
[1737259163502,0.408443,105070.0,105050.0,0.10872355]
[1737259163699,0.47865536,105070.0,105050.0,0.088949]
[1737259165098,0.14173268,105060.0,105050.0,0.088949]
[1737259167201,0.50253268,105060.0,105050.0,0.088949]
[1737259168710,0.50253268,105060.0,105050.0,0.0413]
[1737259169907,0.50253268,105060.0,105050.0,0.10237455]
[1737259170114,0.14173268,105060.0,105050.0,0.51082455]
[1737259171413,0.14173268,105060.0,105050.0,0.5718991]
[1737259171610,0.14173268,105060.0,105050.0,0.51082455]
[1737259171807,0.14173268,105060.0,105050.0,0.52572041]
[1737259172409,0.18938168,105060.0,105050.0,0.52572041]
[1737259173008,0.047649,105060.0,105050.0,0.52572041]
[1737259173217,0.047649,105060.0,105050.0,0.15002455]
[1737259174222,0.18938168,105060.0,105050.0,0.15002455]
[1737259174520,0.18938168,105060.0,105050.0,0.0413]
[1737259174521,0.55018168,105060.0,105050.0,0.0413]
[1737259176011,0.61125623,105060.0,105050.0,0.0413]
[1737259176518,0.408449,105060.0,105050.0,0.0413]
[1737259176919,0.41762176,105060.0,105050.0,0.0413]
[1737259179219,0.47869631,105060.0,105050.0,0.0413]
[1737259179527,0.67845714,105060.0,105050.0,0.00149821]
[1737259180623,0.67845714,105060.0,105040.0,0.70817455]
[1737259180819,0.3608,105050.0,105040.0,0.19593455]
[1737259181023,0.408456,105050.0,105040.0,0.19593455]
[1737259181527,0.45480299,105050.0,105040.0,0.19593455]
[1737259182527,0.408456,105050.0,105040.0,0.19593455]
[1737259182735,0.408456,105050.0,105040.0,0.23953455]
[1737259184130,0.408456,105050.0,105040.0,0.19187455]
[1737259184331,0.408456,105050.0,105040.0,0.1308]
[1737259184635,0.408456,105050.0,105040.0,0.19187455]
[1737259185543,0.60821683,105050.0,105040.0,0.19187455]
[1737259185925,0.66929138,105050.0,105040.0,0.1308]
[1737259186135,0.66929138,105050.0,105040.0,0.0431]
[1737259186341,0.047661,105040.0,105030.0,0.10873955]
[1737259186636,0.047661,105040.0,105020.0,1.05951455]
[1737259186832,0.408461,105040.0,105020.0,1.12208345]
[1737259187538,0.408461,105040.0,105020.0,0.76128345]
[1737259187742,0.3608,105040.0,105020.0,0.76128345]
[1737259187941,0.047665,105030.0,105020.0,0.76128345]
[1737259188144,0.0940154,105030.0,105020.0,0.76128345]
[1737259188643,0.0940154,105030.0,105020.0,0.74638355]
[1737259189138,0.0940154,105030.0,105020.0,0.75543422]
[1737259189443,0.047665,105030.0,105020.0,0.75543422]
[1737259189845,0.047665,105030.0,105020.0,1.11623422]
[1737259190145,0.047665,105030.0,105020.0,0.75543422]
[1737259190538,0.047665,105030.0,105020.0,1.11623422]
[1737259191537,0.047658,105040.0,105030.0,0.04766]
[1737259191736,0.24741883,105040.0,105030.0,0.10873455]
[1737259196644,0.047658,105040.0,105030.0,0.10873455]
[1737259199647,0.047658,105040.0,105030.0,0.46953455]
[1737259200344,0.408458,105040.0,105030.0,0.10873455]
[1737259201348,0.408458,105040.0,105030.0,0.10898078]
[1737259202741,0.408458,105040.0,105030.0,0.0059078]
[1737259203342,0.408458,105040.0,105030.0,0.0535678]
[1737259204746,0.19976083,105050.0,105030.0,0.47544235]
[1737259204935,0.19976083,105050.0,105040.0,0.59493055]
[1737259206048,0.19976083,105050.0,105040.0,0.62174367]
[1737259206248,0.19976083,105050.0,105040.0,0.60982679]
[1737259206639,0.19976083,105050.0,105040.0,0.62174368]
[1737259207047,0.19976083,105050.0,105040.0,0.62174356]
[1737259207241,0.17131591,105050.0,105040.0,0.62174356]
[1737259209248,0.19510591,105050.0,105040.0,0.62174356]
[1737259209444,0.20271591,105050.0,105040.0,0.62174356]
[1737259209950,0.2120628,105050.0,105040.0,0.62174356]
[1737259210150,0.2592428,105050.0,105040.0,0.62174356]
[1737259210342,0.2592428,105050.0,105040.0,0.60982679]
[1737259210547,0.2718628,105050.0,105040.0,0.60982679]
[1737259215050,0.2718628,105050.0,105040.0,0.59493055]
[1737259217257,0.2718628,105050.0,105040.0,0.60403036]
[1737259217551,0.30058591,105050.0,105040.0,0.60403036]
[1737259218464,0.3469259,105050.0,105040.0,0.60403036]
[1737259219856,0.30058591,105050.0,105040.0,0.60403036]
[1737259220065,0.30058591,105050.0,105040.0,0.46101844]
[1737259222256,0.35772031,105050.0,105040.0,0.45191863]
[1737259222464,0.35772031,105050.0,105040.0,0.09111863]
[1737259222855,0.35772031,105050.0,105040.0,0.45191863]
[1737259223053,0.31006931,105050.0,105040.0,0.09111863]
[1737259223253,0.30058591,105050.0,105040.0,0.45191863]
[1737259223460,0.30058591,105050.0,105040.0,0.09111863]
[1737259223769,0.30058591,105050.0,105040.0,0.45191863]
[1737259224148,0.30058591,105050.0,105040.0,0.09111863]
[1737259225158,0.27179724,105050.0,105040.0,0.09111863]
[1737259225353,0.31944824,105050.0,105040.0,0.09111863]
[1737259225550,0.31944824,105050.0,105040.0,0.45191863]
[1737259225754,0.31944824,105050.0,105040.0,0.09111863]
[1737259226061,0.31944824,105050.0,105040.0,0.45191863]
[1737259226062,0.34823691,105050.0,105040.0,0.45191863]
[1737259226360,0.34823691,105050.0,105040.0,0.09111863]
[1737259226751,0.34823691,105050.0,105040.0,0.45191863]
[1737259226956,0.34823691,105050.0,105040.0,0.09111863]
[1737259227158,0.30058591,105050.0,105040.0,0.09111863]
[1737259227960,0.30058591,105050.0,105040.0,0.45191863]
[1737259229272,0.30058591,105050.0,105040.0,0.09111863]
[1737259229467,0.30058591,105050.0,105040.0,0.45191863]
[1737259229861,0.30058591,105050.0,105040.0,0.09111863]
[1737259230060,0.30058591,105050.0,105040.0,0.45191863]
[1737259230462,0.30058591,105050.0,105040.0,0.09111863]
[1737259230869,0.30058591,105050.0,105040.0,0.45191863]
[1737259231463,0.12927,105050.0,105040.0,0.45191863]
[1737259233267,0.1756116,105050.0,105040.0,0.57191863]
[1737259233474,0.1756116,105050.0,105040.0,0.51084408]
[1737259233770,0.1756116,105050.0,105040.0,0.57191863]
[1737259234673,0.12927,105050.0,105040.0,0.57191863]
[1737259236463,0.12927,105050.0,105040.0,0.58681593]
[1737259238162,0.12927,105050.0,105040.0,0.57191863]
[1737259239167,0.12927,105050.0,105040.0,0.58681581]
[1737259240372,0.30071585,105050.0,105040.0,0.58681581]
[1737259245167,0.30071585,105050.0,105040.0,0.59873357]
[1737259245875,0.30071585,105050.0,105040.0,1.30501372]
[1737259246583,0.30071585,105050.0,105040.0,1.30501375]
[1737259248270,0.30071585,105050.0,105040.0,1.29309596]
[1737259248675,0.30071585,105050.0,105040.0,1.26926047]
[1737259248978,0.30071585,105050.0,105040.0,1.28117821]
[1737259249878,0.30071585,105050.0,105040.0,1.3050137]
[1737259250181,0.30071585,105050.0,105040.0,0.9442137]
[1737259250486,0.30071585,105050.0,105040.0,1.3050137]
[1737259251682,0.30071585,105050.0,105040.0,0.9442137]
[1737259252175,0.30071585,105050.0,105040.0,1.3050137]
[1737259252877,0.30071585,105050.0,105040.0,1.29309596]
[1737259253079,0.30071585,105050.0,105040.0,1.3050137]
[1737259253376,0.30071585,105050.0,105040.0,1.29309596]
[1737259253577,0.30071585,105050.0,105040.0,1.26926047]
[1737259255078,0.12927,105050.0,105040.0,1.09901581]
[1737259255478,0.12927,105050.0,105040.0,1.11799102]
[1737259255878,0.12927,105050.0,105040.0,1.03794126]
[1737259256067,0.17561066,105050.0,105040.0,1.11799102]
[1737259257681,0.12927,105050.0,105040.0,1.11799102]
[1737259260485,0.12927,105050.0,105040.0,1.12990877]
[1737259260879,0.12927,105050.0,105040.0,0.76910877]
[1737259261084,0.12927,105050.0,105040.0,0.79294427]
[1737259261485,0.12927,105050.0,105040.0,1.15374427]
[1737259262282,0.12927,105050.0,105040.0,1.32398893]
[1737259262283,0.30083389,105050.0,105040.0,1.32398893]
[1737259262476,0.30083389,105050.0,105040.0,1.28308893]
[1737259263677,0.30083389,105050.0,105040.0,1.28308896]
[1737259264884,0.30083389,105050.0,105040.0,1.1239392]
[1737259265080,0.78170853,105050.0,105020.0,0.62237681]
[1737259265387,0.047669,105020.0,105000.0,0.54229287]
[1737259265580,0.40082488,105010.0,105000.0,0.54229287]
[1737259265991,0.44849388,105010.0,105000.0,0.1]
[1737259266686,0.53976388,105010.0,105000.0,0.1]
[1737259266991,0.047676,105000.0,104980.0,0.08770588]
[1737259267285,0.3608,104990.0,104980.0,0.08770588]
[1737259267495,0.3608,104990.0,104980.0,0.047681]
[1737259267692,0.4695533,104990.0,104980.0,0.047681]
[1737259268389,0.5493533,104990.0,104980.0,0.047681]
[1737259269284,0.5493533,104990.0,104970.0,0.0988753]
[1737259269690,0.5493533,104990.0,104980.0,0.04768]
[1737259269991,0.71993456,104990.0,104980.0,0.04768]
[1737259270194,0.71993456,104990.0,104970.0,0.00343816]
[1737259270487,0.71993456,104990.0,104970.0,0.047688]
[1737259270890,0.0610753,104980.0,104970.0,0.047688]
[1737259271080,0.66828768,104990.0,104970.0,0.047688]
[1737259271081,0.72936298,104990.0,104970.0,0.047688]
[1737259271782,0.14202092,104980.0,104970.0,0.1087633]
[1737259271984,0.14202092,104980.0,104970.0,0.5306386]
[1737259272189,0.14202092,104980.0,104970.0,0.4695633]
[1737259272687,0.0610753,104980.0,104970.0,0.408488]
[1737259273077,0.0610753,104980.0,104970.0,0.047688]
[1737259273287,0.69137422,104990.0,104970.0,0.047688]
[1737259273586,0.0610753,104980.0,104970.0,0.047688]
[1737259274091,0.69137422,104990.0,104970.0,0.047688]
[1737259275591,0.50282092,104990.0,104980.0,0.1087573]
[1737259276297,0.50282092,104990.0,104980.0,0.047682]
[1737259276995,0.56389622,104990.0,104980.0,0.047682]
[1737259277294,0.4624753,104990.0,104980.0,0.047682]
[1737259277997,0.14202092,105000.0,104990.0,0.047678]
[1737259278199,0.14202092,105000.0,104990.0,0.5097533]
[1737259278996,0.14963092,105000.0,104990.0,0.5097533]
[1737259279386,0.14963092,105000.0,104990.0,0.448678]
[1737259279585,0.21070622,105000.0,104990.0,0.047678]
[1737259279793,0.33717922,105000.0,104990.0,0.047678]
[1737259279994,0.134083,105000.0,104990.0,0.408478]
[1737259281888,0.139203,105000.0,104990.0,0.408478]
[1737259282694,0.139203,105000.0,104990.0,0.4695533]
[1737259283894,0.09153,105000.0,104990.0,0.4695533]
[1737259285694,0.23355092,105000.0,104990.0,0.4695533]
[1737259285895,0.28122392,105000.0,104980.0,0.408481]
[1737259286089,0.047678,104990.0,104980.0,0.4695563]
[1737259286296,0.047678,104990.0,104980.0,0.408481]
[1737259286498,0.047678,104990.0,104980.0,0.1087563]
[1737259286694,0.047678,104990.0,104980.0,0.4695563]
[1737259287205,0.139205,105000.0,104990.0,0.047678]
[1737259287406,0.139205,105000.0,104990.0,0.4695533]
[1737259289609,0.2810943,105000.0,104990.0,0.4695533]
[1737259290198,0.1622293,105000.0,104990.0,0.5306286]
[1737259290402,0.1622293,105000.0,104990.0,0.6742286]
[1737259290599,0.03809,105010.0,104990.0,0.6742286]
[1737259290795,0.03809,105010.0,105000.0,0.5306236]
[1737259290995,0.05129523,105010.0,105000.0,0.5306236]
[1737259291205,0.25540075,105040.0,105010.0,0.047669]
[1737259291506,0.138852,105050.0,105030.0,0.5306056]
[1737259291704,0.138852,105050.0,105040.0,0.4695303]
[1737259291909,0.154072,105050.0,105040.0,0.4695303]
[1737259292207,0.192142,105050.0,105040.0,0.4695303]
[1737259292407,0.205232,105050.0,105040.0,0.1087303]
[1737259292997,0.21453758,105050.0,105040.0,0.1087303]
[1737259293298,0.12118558,105050.0,105040.0,0.4695303]
[1737259293498,0.11188,105050.0,105040.0,0.4695303]
[1737259296110,0.159531,105050.0,105040.0,0.4695303]
[1737259296411,0.4441807,105050.0,105030.0,0.3608]
[1737259296596,0.4441807,105050.0,105040.0,0.047655]
[1737259296802,1.02482112,105050.0,105040.0,0.047655]
[1737259297000,0.047655,105040.0,105030.0,0.1087343]
[1737259297309,0.047655,105040.0,105030.0,0.047659]
[1737259297701,0.094155,105040.0,105030.0,0.047659]
[1737259298827,0.04766,105030.0,105020.0,0.408464]
[1737259299607,0.04766,105030.0,105020.0,0.047664]
[1737259300311,0.21827434,105030.0,105020.0,0.047664]
[1737259300712,0.21827434,105030.0,105020.0,0.1087393]
[1737259301106,0.04766,105030.0,105020.0,0.1087393]
[1737259302613,0.10374435,105040.0,105030.0,0.04766]
[1737259302913,0.10374435,105040.0,105030.0,0.1087353]
[1737259303113,0.10374435,105040.0,105030.0,0.04766]
[1737259303505,0.04766,105030.0,105020.0,0.1087383]
[1737259304004,0.04766,105030.0,105020.0,0.4695383]
[1737259304207,0.10374435,105040.0,105030.0,0.04766]
[1737259304411,0.10374435,105040.0,105020.0,0.4218753]
[1737259304614,0.10374435,105040.0,105030.0,0.04766]
[1737259305000,0.04766,105030.0,105020.0,0.4695383]
[1737259305208,0.26469629,105030.0,105020.0,0.4695383]
[1737259305513,0.26469629,105030.0,105020.0,0.047663]
[1737259305713,0.26469629,105030.0,105020.0,0.408463]
[1737259306015,0.30277629,105030.0,105020.0,0.047663]
[1737259306319,0.25642251,105030.0,105020.0,0.408463]
[1737259307106,0.31749781,105030.0,105020.0,0.3608]
[1737259307305,0.25642251,105030.0,105020.0,0.3608]
[1737259307505,0.31749781,105030.0,105020.0,0.3608]
[1737259308107,0.31749781,105030.0,105010.0,0.4695423]
[1737259308108,0.25642251,105030.0,105010.0,0.4695423]
[1737259308315,0.25642251,105030.0,105010.0,0.48444352]
[1737259309515,0.047664,105020.0,105010.0,0.48444352]
[1737259309813,0.047664,105020.0,105010.0,0.42336822]
[1737259310003,0.047664,105020.0,105010.0,0.408467]
[1737259310208,0.09401964,105020.0,105010.0,0.3608]
[1737259310410,0.13971964,105020.0,105010.0,0.3608]
[1737259311410,0.047669,105010.0,105000.0,0.0468]
[1737259312013,0.3608,105010.0,104990.0,0.920996]
[1737259312311,0.047673,105000.0,104990.0,0.6212713]
[1737259312505,0.060753,105000.0,104990.0,0.6212713]
[1737259312914,0.23143551,105000.0,104990.0,0.6212713]
[1737259313119,0.23143551,105000.0,104990.0,0.9820713]
[1737259313311,0.23143551,105000.0,104990.0,0.6212713]
[1737259313510,0.23143551,105000.0,104990.0,0.9820713]
[1737259313708,0.18376251,105000.0,104990.0,0.9820713]
[1737259314420,0.18376251,105000.0,104990.0,0.99697519]
[1737259314811,0.01308,105000.0,104990.0,0.99697519]
[1737259316117,0.02069,105000.0,104990.0,0.99697519]
[1737259318923,0.17068251,105010.0,105000.0,0.047669]
[1737259319113,0.17068251,105010.0,105000.0,0.5306196]
[1737259319314,0.17068251,105010.0,105000.0,0.4695443]
[1737259319513,0.18031279,105020.0,105010.0,0.047664]
[1737259319722,0.17068251,105020.0,105010.0,0.6088393]
[1737259320120,0.21637251,105020.0,105010.0,0.6088393]
[1737259322122,0.22398251,105020.0,105010.0,0.6088393]
[1737259323234,0.27164251,105020.0,105010.0,0.6088393]
[1737259323422,0.22398251,105020.0,105010.0,0.62373998]
[1737259323716,0.36659855,105020.0,105010.0,0.62373998]
[1737259324226,0.36659855,105020.0,105010.0,0.6088393]
[1737259324729,0.22398251,105020.0,105010.0,0.6088393]
[1737259325022,0.22398251,105020.0,105010.0,0.62374016]
[1737259325925,0.22398251,105020.0,105010.0,0.6088393]
[1737259328717,0.22398251,105020.0,105010.0,0.6237401]
[1737259329822,0.36670231,105020.0,105010.0,0.6237401]
[1737259331033,0.1960198,105020.0,105010.0,0.6237401]
[1737259331816,0.1960198,105020.0,105010.0,0.6356609]